fUSD/lending_fUSD_20251014
["ID","MTS","AMOUNT","RATE_DAILY","PERIOD"]
[391297119,1760476610079,-250.0,0.0001632,2]
[391297120,1760476610114,-250.0,0.0001632,2]
[391297121,1760476610138,-250.0,0.0001632,2]
[391297122,1760476610163,-250.0,0.0001632,2]
[391297123,1760476610187,-200.0,0.0001632,2]
[391297124,1760476610211,-330.47338629,0.0001632,2]
[391297125,1760476610235,-398.06763844,0.0001632,2]
[391297126,1760476610258,-500.0,0.0001632,2]
[391297127,1760476610282,-500.0,0.0001632,2]
[391297128,1760476610305,-500.0,0.0001632,2]
[391297129,1760476610341,-2000.0,0.0001632,2]
[391297130,1760476610367,-2000.0,0.0001632,2]
[391297131,1760476610392,-2000.0,0.0001632,2]
[391297132,1760476610415,-500.0,0.0001632,2]
[391297133,1760476610438,-500.0,0.0001632,2]
[391297134,1760476610463,-500.0,0.0001632,2]
[391297135,1760476610486,-500.0,0.0001632,2]
[391297136,1760476610509,-500.0,0.0001632,2]
[391297137,1760476610533,-500.0,0.0001632,2]
[391297138,1760476610556,-500.0,0.0001632,2]
[391297139,1760476610581,-500.0,0.0001632,2]
[391297140,1760476610604,-500.0,0.0001632,2]
[391297141,1760476610627,-500.0,0.0001632,2]
[391297142,1760476610944,-500.0,0.0001632,2]
[391297143,1760476610968,-322.6107,0.0001632,2]
[391297144,1760476610993,-629.26693628,0.00016322,2]
[391297145,1760476611018,-181.88166078,0.00016324,2]
[391297146,1760476611041,-5000.0,0.00016327,2]
[391297147,1760476611065,-335.451212,0.00016329,2]
[391297148,1760476611096,-629.26693628,0.0001633,2]
[391297149,1760476611121,-676.7476461,0.0001633,2]
[391297150,1760476611147,-280.20942314,0.0001633,2]
[391297151,1760476611171,-363.2838924,0.0001633,2]
[391297152,1760476611195,-211.19132994,0.0001633,2]
[391297153,1760476611219,-185.95933474,0.0001633,2]
[391297154,1760476611248,-179.49951,0.0001634,2]
[391297155,1760476621235,300.0,0.00016319,2]
[391297156,1760476622354,2645.35598099,0.00016259,2]
[391297157,1760476626611,-151.0,0.00016357,2]
[391297158,1760476626634,-151.0,0.00016357,2]
[391297159,1760476626660,-181.11378136,0.00016357,2]
[391297160,1760476626988,-151.0,0.00016357,2]
[391297161,1760476627013,-151.0,0.00016357,2]
[391297162,1760476627038,-151.0,0.00016357,2]
[391297163,1760476627063,-72.07098859,0.00016357,2]
[391297164,1760476667570,184.28,0.00012345,2]
[391297165,1760476861278,200.0,0.00030316,120]
[391297166,1760476995572,2000.0,0.00025475,120]
[391297167,1760476995935,2000.0,0.00027014,120]
[391297168,1760477004295,500.0,0.00025479,120]
[391297169,1760477004676,630.338695,0.00027396,120]
[391297170,1760477125552,365.88820122,0.000108,2]
[391297171,1760477132071,3136.06,0.00030317,60]
[391297172,1760477133280,7732.93881177,0.00030317,120]
[391297173,1760477135987,1098.85001053,9e-05,2]
[391297174,1760477160874,200.0,0.00030317,120]
[391297175,1760477162141,1337.63178825,8e-05,2]
[391297188,1760477330278,-208.01764293,0.0001289,2]
[391297189,1760477333065,-260.14817896,0.0001289,2]
[391297190,1760477334716,-302.0,0.0001289,2]
[391297191,1760477336149,-385.64566687,0.0001289,2]
[391297192,1760477340917,-164.35433313,0.0001289,2]
[391297193,1760477342732,-154.35433313,0.0001289,2]
[391297194,1760477396491,500.0,0.00027397,120]
[391297226,1760477431583,-664.70252939,0.0001289,2]
[391297228,1760477431596,-1944.61268617,0.0001289,2]
[391297230,1760477431605,-151.05177922,0.0001439,2]
[391297232,1760477431614,-300.0,0.00014769,2]
[391297233,1760477431623,-175.28577664,0.0001477,2]
[391297234,1760477431632,-279.34590448,0.0001477,2]
[391297235,1760477431641,-137.64130723,0.0001477,2]
[391297236,1760477431652,-42.69128018,0.0001477,2]
[391297237,1760477431662,-225.17686349,0.0001477,2]
[391297238,1760477431671,-150.0,0.0001477,2]
[391297239,1760477431680,-253.02048564,0.0001477,2]
[391297240,1760477431754,-4.08359358,0.0001477,2]
[391297241,1760477431764,-220.93837237,0.0001477,2]
[391297242,1760477431773,-156.01797847,0.0001477,2]
[391297243,1760477431782,-521.31,0.0001499,2]
[391297244,1760477431791,-521.31,0.0001499,2]
[391297245,1760477431800,-2325.75,0.0001499,2]
[391297246,1760477431809,-500.0,0.00014999,2]
[391297247,1760477431819,-500.0,0.00014999,2]
[391297248,1760477431828,-500.0,0.00014999,2]
[391297249,1760477431837,-500.0,0.00014999,2]
[391297250,1760477431846,-500.0,0.00014999,2]
[391297251,1760477431855,-500.0,0.00014999,2]
[391297252,1760477431864,-500.0,0.00014999,2]
[391297253,1760477431873,-500.0,0.00014999,2]
[391297254,1760477431883,-500.0,0.00014999,2]
[391297255,1760477431892,-500.0,0.00014999,2]
[391297256,1760477431901,-500.0,0.00014999,2]
[391297257,1760477431911,-500.0,0.00014999,2]
[391297258,1760477431919,-500.0,0.00014999,2]
[391297259,1760477431929,-550.0,0.00014999,2]
[391297260,1760477431939,-500.0,0.00014999,2]
[391297261,1760477431948,-500.0,0.00014999,2]
[391297262,1760477431957,-500.0,0.00014999,2]
[391297263,1760477431966,-505.8601711,0.00014999,2]
[391297264,1760477431975,-500.0,0.00014999,2]
[391297265,1760477431984,-500.0,0.00014999,2]
[391297266,1760477431993,-500.0,0.00014999,2]
[391297267,1760477432002,-500.0,0.00014999,2]
[391297268,1760477432011,-500.0,0.00014999,2]
[391297269,1760477432020,-500.0,0.00014999,2]
[391297270,1760477432029,-500.0,0.00014999,2]
[391297271,1760477432038,-500.0,0.00014999,2]
[391297272,1760477432047,-500.0,0.00014999,2]
[391297273,1760477432056,-500.0,0.00014999,2]
[391297274,1760477432065,-500.0,0.00014999,2]
[391297275,1760477432074,-500.0,0.00014999,2]
[391297276,1760477432083,-500.0,0.00014999,2]
[391297277,1760477432092,-500.0,0.00014999,2]
[391297278,1760477432100,-500.0,0.00014999,2]
[391297279,1760477432109,-500.0,0.00014999,2]
[391297280,1760477432118,-500.0,0.00014999,2]
[391297281,1760477432128,-500.0,0.00014999,2]
[391297282,1760477432137,-500.0,0.00014999,2]
[391297283,1760477432146,-500.0,0.00014999,2]
[391297284,1760477432156,-500.0,0.00014999,2]
[391297285,1760477432165,-500.0,0.00014999,2]
[391297286,1760477432175,-500.0,0.00014999,2]
[391297287,1760477432184,-500.0,0.00014999,2]
[391297288,1760477432194,-500.0,0.00014999,2]
[391297289,1760477432203,-500.0,0.00014999,2]
[391297290,1760477432212,-500.0,0.00014999,2]
[391297291,1760477432222,-500.0,0.00014999,2]
[391297292,1760477432231,-500.0,0.00014999,2]
[391297293,1760477432240,-500.0,0.00014999,2]
[391297294,1760477432249,-500.0,0.00014999,2]
[391297295,1760477432259,-500.0,0.00014999,2]
[391297296,1760477432268,-500.0,0.00014999,2]
[391297297,1760477432277,-500.0,0.00014999,2]
[391297298,1760477432286,-500.0,0.00014999,2]
[391297299,1760477432299,-500.0,0.00014999,2]
[391297300,1760477432308,-500.0,0.00014999,2]
[391297301,1760477432318,-500.0,0.00014999,2]
[391297302,1760477432327,-500.0,0.00014999,2]
[391297303,1760477432338,-500.0,0.00014999,2]
[391297304,1760477432347,-500.0,0.00014999,2]
[391297305,1760477432356,-500.0,0.00014999,2]
[391297306,1760477432366,-316.88685712,0.00014999,2]
[391297307,1760477432375,-500.0,0.00014999,2]
[391297308,1760477432384,-500.0,0.00014999,2]
[391297309,1760477432394,-500.0,0.00014999,2]
[391297310,1760477432403,-500.0,0.00014999,2]
[391297311,1760477432412,-500.0,0.00014999,2]
[391297312,1760477432421,-500.0,0.00014999,2]
[391297313,1760477432431,-500.0,0.00014999,2]
[391297314,1760477432440,-66776.53027435,0.00015,2]
[391297315,1760477432486,-463.32343304,0.00015,2]
[391297316,1760477432497,-258.87161287,0.00015,2]
[391297317,1760477432539,-2774.295589,0.00015,2]
[391297318,1760477432550,-11592.48708987,0.00015,2]
[391297319,1760477432561,-43494.54512738,0.00015,2]
[391297320,1760477432572,-11251.20314304,0.00015,2]
[391297321,1760477432588,-2674.68627072,0.00015,2]
[391297336,1760477437647,-968.99600713,0.00015,2]
[391297337,1760477437708,-5395.40896745,0.00015,2]
[391297354,1760477440685,-46316.65562403,0.00015,2]
[391297355,1760477440694,-27114.51895878,0.00015,2]
[391297356,1760477440703,-250.0,0.00015263,7]
[391297357,1760477440712,-1357.87,0.00015285,2]
[391297358,1760477440722,-500.0,0.00015342,2]
[391297359,1760477440732,-2380.8203829,0.00015874,2]
[391297360,1760477440741,-2380.82038281,0.00015926,2]
[391297361,1760477440750,-889.65936706,0.00015957,2]
[391297362,1760477440760,-2380.82038281,0.00015977,2]
[391297363,1760477440769,-3451.0,0.00015982,2]
[391297364,1760477440778,-2380.82038281,0.00016029,2]
[391297365,1760477440787,-2380.82038281,0.0001608,2]
[391297366,1760477440796,-736.83389702,0.000161,2]
[391297367,1760477440806,-2380.82038281,0.00016132,2]
[391297368,1760477440815,-4216.4145096,0.00016134,2]
[391297369,1760477440824,-420.0,0.00016167,2]
[391297370,1760477440834,-2380.82038281,0.00016183,2]
[391297371,1760477440843,-179.4995,0.0001619,2]
[391297372,1760477440852,-179.49951,0.0001619,2]
[391297373,1760477440861,-179.4995,0.0001619,2]
[391297374,1760477440869,-261.20630263,0.00016224,2]
[391297375,1760477440879,-2380.82038281,0.00016235,2]
[391297376,1760477440888,-2000.0,0.00016246,2]
[391297377,1760477440898,-215.21749905,0.00016258,2]
[391297378,1760477440907,-521.31,0.00016285,2]
[391297379,1760477440916,-277.35679052,0.00016285,2]
[391297380,1760477440928,-2380.82038281,0.00016286,2]
[391297381,1760477440937,-5000.0,0.00016295,2]
[391297382,1760477440946,-200.0,0.00016298,2]
[391297383,1760477440955,-1359.612,0.00016306,2]
[391297384,1760477440965,-4362.1053795,0.00016324,2]
[391297385,1760477440974,-5702.6607703,0.00016324,2]
[391297386,1760477440986,-1421.38002755,0.00016324,2]
[391297387,1760477441008,-5840.0,0.00016324,2]
[391297397,1760477443090,-337.27249606,0.00016324,2]
[391297398,1760477443308,-4154.2,0.00016324,2]
[391297403,1760477445631,-7979.76900729,0.00016324,2]
[391297404,1760477445640,-151.0,0.00016324,2]
[391297405,1760477445650,-151.0,0.00016324,2]
[391297406,1760477445659,-151.0,0.00016324,2]
[391297407,1760477445668,-151.0,0.00016324,2]
[391297408,1760477445678,-151.0,0.00016324,2]
[391297409,1760477445687,-151.0,0.00016324,2]
[391297410,1760477445696,-151.0,0.00016324,2]
[391297411,1760477445706,-151.0,0.00016324,2]
[391297412,1760477445716,-151.0,0.00016324,2]
[391297413,1760477445725,-151.0,0.00016324,2]
[391297414,1760477445735,-151.0,0.00016324,2]
[391297415,1760477445744,-580.03136,0.00016324,2]
[391297416,1760477445754,-580.03136,0.00016324,2]
[391297417,1760477445763,-580.03136,0.00016324,2]
[391297418,1760477445772,-580.03136,0.00016324,2]
[391297419,1760477445782,-151.0,0.00016324,2]
[391297420,1760477445791,-151.0,0.00016324,2]
[391297421,1760477445800,-151.0,0.00016324,2]
[391297422,1760477445810,-151.0,0.00016324,2]
[391297423,1760477445819,-256.461261,0.00016324,2]
[391297424,1760477445829,-256.461261,0.00016324,2]
[391297425,1760477445838,-256.461261,0.00016324,2]
[391297426,1760477445847,-256.461261,0.00016324,2]
[391297427,1760477445858,-151.0,0.00016324,2]
[391297428,1760477445867,-151.0,0.00016324,2]
[391297429,1760477445876,-151.0,0.00016324,2]
[391297430,1760477445886,-322.093332,0.00016324,2]
[391297431,1760477445896,-322.093332,0.00016324,2]
[391297432,1760477445905,-46.17576327,0.00016324,2]
[391297433,1760477445918,-262.6,0.00016324,2]
[391297524,1760477446938,-13.31756873,0.00016324,2]
[391297526,1760477446948,-151.0,0.00016324,2]
[391297528,1760477446958,-151.0,0.00016324,2]
[391297530,1760477446967,-151.0,0.00016324,2]
[391297532,1760477446976,-322.093332,0.00016324,2]
[391297534,1760477446986,-151.0,0.00016324,2]
[391297536,1760477446995,-151.0,0.00016324,2]
[391297538,1760477447009,-151.0,0.00016324,2]
[391297540,1760477447018,-151.0,0.00016324,2]
[391297542,1760477447028,-151.0,0.00016324,2]
[391297544,1760477447038,-151.0,0.00016324,2]
[391297546,1760477447047,-151.0,0.00016324,2]
[391297548,1760477447056,-151.0,0.00016324,2]
[391297550,1760477447065,-186.8062821,0.0001633,2]
[391297552,1760477447075,-185.95933474,0.0001633,2]
[391297554,1760477447083,-438.12622916,0.00016338,2]
[391297559,1760477447128,-1942.69415365,0.00016338,2]
[391297561,1760477447137,-10.08671243,0.00016339,2]
[391297580,1760477447365,-511.22328757,0.00016339,2]
[391297581,1760477447378,-521.31,0.00016348,2]
[391297582,1760477447388,-322.6107,0.00016349,2]
[391297583,1760477447399,-500.0,0.00016349,2]
[391297585,1760477447410,-500.0,0.00016349,2]
[391297587,1760477447421,-500.0,0.00016349,2]
[391297589,1760477447430,-500.0,0.00016349,2]
[391297591,1760477447439,-44.23404106,0.00016349,2]
[391297603,1760477447550,-308.73660518,0.00016349,2]
[391297605,1760477447560,-2000.0,0.00016349,2]
[391297607,1760477447570,-2000.0,0.00016349,2]
[391297609,1760477447579,-951.26339395,0.00016349,2]
[391298947,1760477461250,200.0,0.00030317,120]
[391298948,1760477533025,800.0,0.00026986,120]
[391298949,1760477602281,2000.0,0.00026663,120]
[391298951,1760477764966,200.0,0.00030317,120]
[391298984,1760478061845,200.0,0.00030442,120]
[391298988,1760478198194,2000.0,0.00027052,120]
[391298993,1760478205217,500.0,0.00026075,120]
[391298995,1760478328033,500.0,0.00027397,120]
[391298996,1760478340792,1403.62874,0.00030448,120]
[391298997,1760478361744,200.0,0.00030448,120]
[391298999,1760478465806,1505.79076696,0.00027397,120]
[391299001,1760478631726,-666.0,0.00015019,3]
[391299002,1760478631735,-150.0,0.00015209,2]
[391299003,1760478631745,-185.19057989,0.00015275,2]
[391299004,1760478631756,-14.80942011,0.00015275,2]
[391299005,1760478631766,-859.90820415,0.00015276,2]
[391299006,1760478631777,-344.59924257,0.00015276,2]
[391299007,1760478631787,-16.03075743,0.00015276,2]
[391299008,1760478631924,-133.96924257,0.00015276,2]
[391299009,1760478631934,-160.0,0.00015279,2]
[391299010,1760478631944,-1466.96,0.00015279,2]
[391299011,1760478631953,-500.0,0.00015282,2]
[391299012,1760478631963,-250.0,0.00015301,2]
[391299014,1760478631972,-1200.0,0.00015558,2]
[391299016,1760478631980,-300.0,0.00015558,2]
[391299018,1760478631990,-644.79446245,0.00015559,2]
[391299020,1760478631999,-1891.35819149,0.00015559,2]
[391299028,1760478632064,-996.4525,0.00015559,2]
[391299030,1760478632075,-1068.128665,0.00015559,2]
[391299032,1760478632086,-3274.9241422,0.00015559,2]
[391299034,1760478632097,-2321.30436678,0.00015559,2]
[391299036,1760478632107,-151.0,0.00015559,2]
[391299038,1760478632116,-277.35679052,0.00015559,2]
[391299040,1760478632125,-151.18,0.00015612,2]
[391299042,1760478632134,-3043.76100463,0.00015614,2]
[391299045,1760478632146,-6861.83707187,0.00015614,2]
[391299048,1760478632155,-1402.65892823,0.00015615,2]
[391299053,1760478632185,-1880.48346,0.00015615,2]
[391299055,1760478632196,-1024.86368213,0.00015615,2]
[391299057,1760478632208,-999.9,0.00015615,2]
[391299059,1760478632219,-318.09392964,0.00015615,2]
[391299061,1760478632228,-10272.10520533,0.00015669,2]
[391299063,1760478632238,-10652.17309792,0.00015724,2]
[391299065,1760478632248,-11046.30350255,0.00015779,2]
[391299068,1760478632259,-312.27,0.00015783,2]
[391299070,1760478632268,-167.41,0.00015793,2]
[391299072,1760478632278,-11455.01673214,0.00015834,2]
[391299073,1760478632287,-11878.85235123,0.00015889,2]
[391299075,1760478632296,-151.0,0.00015944,2]
[391299077,1760478632305,-151.0,0.00015944,2]
[391299079,1760478632315,-151.0,0.00015944,2]
[391299081,1760478632324,-151.0,0.00015944,2]
[391299083,1760478632333,-220.536353,0.00015944,2]
[391299085,1760478632343,-257.674666,0.00015944,2]
[391299087,1760478632352,-151.0,0.00015944,2]
[391299090,1760478632362,-151.0,0.00015944,2]
[391299091,1760478632371,-257.674666,0.00015944,2]
[391299093,1760478632381,-151.0,0.00015944,2]
[391299096,1760478632390,-257.674666,0.00015944,2]
[391299098,1760478632400,-151.0,0.00015944,2]
[391299100,1760478632411,-257.674666,0.00015944,2]
[391299102,1760478632420,-151.0,0.00015944,2]
[391299104,1760478632429,-151.0,0.00015944,2]
[391299106,1760478632439,-151.0,0.00015944,2]
[391299108,1760478632448,-151.0,0.00015944,2]
[391299110,1760478632458,-151.0,0.00015944,2]
[391299112,1760478632467,-151.0,0.00015944,2]
[391299114,1760478632476,-151.0,0.00015944,2]
[391299116,1760478632485,-151.0,0.00015944,2]
[391299118,1760478632495,-151.0,0.00015944,2]
[391299120,1760478632504,-151.0,0.00015944,2]
[391299122,1760478632513,-151.0,0.00015944,2]
[391299124,1760478632522,-151.0,0.00015944,2]
[391299126,1760478632533,-152.773377,0.00015944,2]
[391299128,1760478632542,-151.0,0.00015944,2]
[391299130,1760478632551,-151.0,0.00015944,2]
[391299132,1760478632560,-151.0,0.00015944,2]
[391299134,1760478632569,-151.0,0.00015944,2]
[391299136,1760478632578,-151.0,0.00015944,2]
[391299138,1760478632587,-151.0,0.00015944,2]
[391299140,1760478632596,-151.0,0.00015944,2]
[391299142,1760478632605,-151.0,0.00015944,2]
[391299144,1760478632614,-169.256935,0.00015944,2]
[391299146,1760478632623,-151.0,0.00015944,2]
[391299148,1760478632632,-169.256935,0.00015944,2]
[391299150,1760478632641,-151.0,0.00015944,2]
[391299152,1760478632651,-169.256935,0.00015944,2]
[391299154,1760478632661,-169.256935,0.00015944,2]
[391299156,1760478632670,-151.0,0.00015944,2]
[391299158,1760478632679,-151.0,0.00015944,2]
[391299159,1760478632689,-151.0,0.00015944,2]
[391299161,1760478632699,-151.0,0.00015944,2]
[391299164,1760478632713,-151.0,0.00015944,2]
[391299166,1760478632726,-151.0,0.00015944,2]
[391299168,1760478632736,-151.0,0.00015944,2]
[391299170,1760478632745,-151.0,0.00015944,2]
[391299171,1760478632755,-191.874591,0.00015944,2]
[391299173,1760478632764,-151.0,0.00015944,2]
[391299175,1760478632773,-151.0,0.00015944,2]
[391299178,1760478632783,-191.874591,0.00015944,2]
[391299179,1760478632792,-151.0,0.00015944,2]
[391299181,1760478632801,-191.874591,0.00015944,2]
[391299183,1760478632810,-191.874591,0.00015944,2]
[391299185,1760478632819,-151.0,0.00015944,2]
[391299187,1760478632828,-213.748538,0.00015944,2]
[391299189,1760478632836,-213.748538,0.00015944,2]
[391299191,1760478632845,-213.748538,0.00015944,2]
[391299193,1760478632855,-236.1522,0.00015944,2]
[391299195,1760478632864,-213.748538,0.00015944,2]
[391299197,1760478632873,-151.0,0.00015944,2]
[391299199,1760478632882,-151.0,0.00015944,2]
[391299201,1760478632891,-259.494128,0.00015944,2]
[391299203,1760478632900,-151.0,0.00015944,2]
[391299205,1760478632909,-12318.36988823,0.00015944,2]
[391299208,1760478632919,-889.65936706,0.0001596,2]
[391299210,1760478632927,-799.0,0.00015979,2]
[391299212,1760478632936,-151.0,0.00015999,2]
[391299213,1760478632946,-151.0,0.00015999,2]
[391299215,1760478632955,-151.0,0.00015999,2]
[391299217,1760478632964,-151.0,0.00015999,2]
[391299219,1760478632973,-151.0,0.00015999,2]
[391299221,1760478632983,-151.0,0.00015999,2]
[391299223,1760478632992,-179.610042,0.00015999,2]
[391299225,1760478633001,-151.0,0.00015999,2]
[391299227,1760478633010,-213.748538,0.00015999,2]
[391299229,1760478633020,-213.748538,0.00015999,2]
[391299232,1760478633029,-213.748538,0.00015999,2]
[391299233,1760478633039,-213.748538,0.00015999,2]
[391299235,1760478633048,-151.0,0.00015999,2]
[391299237,1760478633058,-151.0,0.00015999,2]
[391299239,1760478633068,-12774.14957409,0.00015999,2]
[391299241,1760478633077,-400.0,0.00016,2]
[391299244,1760478633086,-200.0,0.00016,2]
[391299245,1760478633095,-2911.92040736,0.00016054,2]
[391299248,1760478633107,-587.89618772,0.00016054,2]
[391299250,1760478633117,-151.0,0.00016107,2]
[391299252,1760478633128,-254.93297719,0.0001613,2]
[391299254,1760478633137,-799.0,0.00016155,2]
[391299256,1760478633147,-544.63643509,0.00016158,2]
[391299295,1760478637726,-151.0,0.00015944,2]
[391299299,1760478637736,-193.33794266,0.00015944,2]
[391299311,1760478637791,-11.83106534,0.00015944,2]
[391299313,1760478637801,-151.0,0.00015944,2]
[391299315,1760478637810,-229.929011,0.00015999,2]
[391299316,1760478637819,-205.169008,0.00015999,2]
[391299317,1760478637828,-319.14037454,0.00016158,2]
[391299318,1760478637839,-289.22319037,0.00016158,2]
[391299319,1760478637848,-7025.28750391,0.00016159,2]
[391299320,1760478637858,-799.0,0.00016159,2]
[391299321,1760478637867,-166.32993521,0.00016171,2]
[391299322,1760478637876,-7025.2875039,0.00016179,2]
[391299323,1760478637885,-162.03,0.0001618,2]
[391299324,1760478637895,-2180.4,0.0001618,2]
[391299325,1760478637904,-550.0,0.00016189,2]
[391299326,1760478637913,-500.0,0.00016189,2]
[391299327,1760478637922,-500.0,0.00016189,2]
[391299328,1760478637931,-500.0,0.00016189,2]
[391299329,1760478637940,-500.0,0.00016189,2]
[391299330,1760478637949,-500.0,0.00016189,2]
[391299331,1760478637959,-500.0,0.00016189,2]
[391299332,1760478637968,-500.0,0.00016189,2]
[391299333,1760478637978,-500.0,0.00016189,2]
[391299334,1760478637987,-500.0,0.00016189,2]
[391299335,1760478637996,-500.0,0.00016189,2]
[391299337,1760478638005,-604.69195517,0.00016189,2]
[391299339,1760478638014,-500.0,0.00016189,2]
[391299340,1760478638023,-151.0,0.0001619,2]
[391299341,1760478638032,-151.0,0.0001619,2]
[391299342,1760478638042,-151.0,0.0001619,2]
[391299343,1760478638051,-151.0,0.0001619,2]
[391299344,1760478638060,-858.116865,0.0001619,2]
[391299345,1760478638069,-235.63304644,0.0001619,2]
[391299346,1760478638081,-622.48381856,0.0001619,2]
[391299347,1760478638090,-151.0,0.0001619,2]
[391299348,1760478638100,-13.86474544,0.0001619,2]
[391299349,1760478638111,-844.25211956,0.0001619,2]
[391299351,1760478638120,-856.94788044,0.0001619,2]
[391299352,1760478638146,-1.16898456,0.0001619,2]
[391299353,1760478638155,-151.0,0.0001619,2]
[391299354,1760478638165,-151.00000051,0.0001619,2]
[391299355,1760478638175,-88.82261492,0.0001619,2]
[391299356,1760478638186,-62.17738508,0.0001619,2]
[391299357,1760478638196,-151.0,0.0001619,2]
[391299358,1760478638206,-759.346239,0.0001619,2]
[391299359,1760478638215,-151.0,0.0001619,2]
[391299360,1760478638226,-759.346239,0.0001619,2]
[391299361,1760478638235,-759.346239,0.0001619,2]
[391299362,1760478638245,-151.0,0.0001619,2]
[391299363,1760478638255,-759.346239,0.0001619,2]
[391299364,1760478638264,-187.201677,0.0001619,2]
[391299365,1760478638275,-151.0,0.0001619,2]
[391299366,1760478638284,-151.0,0.0001619,2]
[391299367,1760478638293,-151.0,0.0001619,2]
[391299368,1760478638303,-151.0,0.0001619,2]
[391299369,1760478638313,-293.641501,0.0001619,2]
[391299370,1760478638322,-696.329859,0.0001619,2]
[391299371,1760478638331,-696.329859,0.0001619,2]
[391299372,1760478638341,-696.329859,0.0001619,2]
[391299373,1760478638350,-696.329859,0.0001619,2]
[391299374,1760478638359,-151.0,0.0001619,2]
[391299375,1760478638369,-151.0,0.0001619,2]
[391299376,1760478638378,-151.0,0.0001619,2]
[391299377,1760478638387,-151.0,0.0001619,2]
[391299378,1760478638396,-151.0,0.0001619,2]
[391299379,1760478638405,-572.797798,0.0001619,2]
[391299380,1760478638415,-151.0,0.0001619,2]
[391299381,1760478638423,-572.797798,0.0001619,2]
[391299382,1760478638433,-151.0,0.0001619,2]
[391299383,1760478638442,-572.797798,0.0001619,2]
[391299384,1760478638452,-151.0,0.0001619,2]
[391299385,1760478638461,-572.797798,0.0001619,2]
[391299386,1760478638470,-151.0,0.0001619,2]
[391299387,1760478638480,-151.0,0.0001619,2]
[391299388,1760478638489,-151.0,0.0001619,2]
[391299389,1760478638499,-572.797798,0.0001619,2]
[391299390,1760478638508,-572.797798,0.0001619,2]
[391299391,1760478638517,-572.797798,0.0001619,2]
[391299392,1760478638526,-572.797798,0.0001619,2]
[391299393,1760478638535,-151.0,0.0001619,2]
[391299394,1760478638544,-151.0,0.0001619,2]
[391299395,1760478638553,-151.0,0.0001619,2]
[391299396,1760478638563,-151.0,0.0001619,2]
[391299397,1760478638572,-151.0,0.0001619,2]
[391299398,1760478638581,-151.00000021,0.0001619,2]
[391299399,1760478638592,-151.0,0.0001619,2]
[391299400,1760478638601,-151.0,0.0001619,2]
[391299401,1760478638610,-151.0,0.0001619,2]
[391299402,1760478638619,-151.0,0.0001619,2]
[391299403,1760478638628,-151.0,0.0001619,2]
[391299404,1760478638637,-152.880403,0.0001619,2]
[391299405,1760478638646,-151.0,0.0001619,2]
[391299406,1760478638655,-154.00000027,0.0001619,2]
[391299407,1760478638665,-151.0,0.0001619,2]
[391299408,1760478638674,-151.0,0.0001619,2]
[391299409,1760478638683,-151.0,0.0001619,2]
[391299410,1760478638693,-151.0,0.0001619,2]
[391299411,1760478638703,-151.0,0.0001619,2]
[391299412,1760478638715,-151.0,0.0001619,2]
[391299413,1760478638724,-151.0,0.0001619,2]
[391299414,1760478638734,-44.72207054,0.0001619,2]
[391299415,1760478638764,-106.27792946,0.0001619,2]
[391299416,1760478638774,-151.0,0.0001619,2]
[391299417,1760478638783,-151.0,0.0001619,2]
[391299418,1760478638795,-151.0,0.0001619,2]